fUSD/lending_fUSD_20240520
["ID","MTS","AMOUNT","RATE_DAILY","PERIOD"]
[327589019,1716245513621,-507.5,0.00039726,6]
[327589020,1716245513631,-543.20006352,0.00039726,6]
[327589021,1716245513640,-500.0,0.00039726,6]
[327589022,1716245513651,-500.0,0.00039726,6]
[327589023,1716245513661,-627.7410865,0.00039726,6]
[327589024,1716245513671,-500.0,0.00039726,6]
[327589025,1716245513680,-500.0,0.00039726,6]
[327589026,1716245513690,-2488.2,0.00039726,6]
[327589027,1716245513699,-500.0,0.00039726,6]
[327589028,1716245513709,-500.0,0.00039726,6]
[327589029,1716245513719,-994.51,0.00039726,6]
[327589030,1716245513728,-544.27,0.00039726,6]
[327589031,1716245513738,-500.0,0.00039726,6]
[327589032,1716245513748,-500.0,0.00039726,6]
[327589033,1716245513757,-500.0,0.00039726,6]
[327589034,1716245513766,-553.81,0.00039726,6]
[327589035,1716245513776,-561.8,0.00039726,6]
[327589036,1716245513787,-813.72,0.00039726,6]
[327589037,1716245513797,-512.19058082,0.00039726,6]
[327589038,1716245513806,-527.23,0.00039726,6]
[327589039,1716245513816,-500.0,0.00039726,6]
[327589040,1716245513825,-780.82,0.00039726,6]
[327589041,1716245513835,-500.0,0.00039726,6]
[327589042,1716245513844,-748.25,0.00039726,6]
[327589043,1716245513853,-540.34,0.00039726,6]
[327589044,1716245513862,-500.0,0.00039726,6]
[327589045,1716245513871,-500.0,0.00039726,6]
[327589046,1716245513880,-500.0,0.00039726,6]
[327589047,1716245513891,-576.59,0.00039726,6]
[327589048,1716245513903,-1049.02,0.00039726,6]
[327589049,1716245513913,-500.0,0.00039726,6]
[327589050,1716245513923,-3015.58,0.00039726,6]
[327589051,1716245513933,-500.0,0.00039726,6]
[327589052,1716245513943,-720.35,0.00039726,6]
[327589053,1716245513952,-2808.06,0.00039726,6]
[327589054,1716245513963,-500.0,0.00039726,6]
[327589055,1716245513976,-1197.9,0.00039726,6]
[327589056,1716245513986,-500.0,0.00039726,6]
[327589057,1716245513996,-3734.43,0.00039726,6]
[327589058,1716245514006,-500.0,0.00039726,6]
[327589059,1716245514016,-706.28,0.00039726,6]
[327589060,1716245514025,-914.18,0.00039726,6]
[327589061,1716245514036,-500.0,0.00039726,6]
[327589062,1716245514045,-500.0,0.00039726,6]
[327589063,1716245514055,-834.67,0.00039726,6]
[327589064,1716245514065,-555.57,0.00039726,6]
[327589065,1716245514075,-3244.42,0.00039726,6]
[327589066,1716245514086,-3077.27,0.00039726,6]
[327589067,1716245514096,-693.24,0.00039726,6]
[327589068,1716245514107,-500.0,0.00039726,6]
[327589069,1716245514116,-3754.49,0.00039726,6]
[327589070,1716245514126,-618.2,0.00039726,6]
[327589071,1716245514136,-500.0,0.00039726,6]
[327589072,1716245514145,-500.0,0.00039726,6]
[327589073,1716245514155,-500.0,0.00039726,6]
[327589074,1716245514165,-500.0,0.00039726,6]
[327589075,1716245514175,-500.0,0.00039726,6]
[327589076,1716245514185,-500.0,0.00039726,6]
[327589077,1716245514195,-1764.94,0.00039726,6]
[327589078,1716245514205,-500.0,0.00039726,6]
[327589079,1716245514214,-500.0,0.00039726,6]
[327589080,1716245514224,-5927.85,0.00039726,6]
[327589081,1716245514233,-500.0,0.00039726,6]
[327589082,1716245514243,-500.0,0.00039726,6]
[327589083,1716245514253,-1987.01,0.00039726,6]
[327589084,1716245514263,-811.91,0.00039726,6]
[327589085,1716245514273,-693.3,0.00039726,6]
[327589086,1716245514284,-500.0,0.00039726,6]
[327589087,1716245514295,-500.0,0.00039726,6]
[327589088,1716245514305,-1541.83,0.00039726,6]
[327589089,1716245514315,-500.0,0.00039726,6]
[327589090,1716245514324,-500.0,0.00039726,6]
[327589091,1716245514334,-500.0,0.00039726,6]
[327589092,1716245514343,-1597.12,0.00039726,6]
[327589093,1716245514353,-4898.33,0.00039726,6]
[327589094,1716245514363,-967.86,0.00039726,6]
[327589095,1716245514373,-500.0,0.00039726,6]
[327589096,1716245514384,-5026.25,0.00039726,6]
[327589097,1716245514394,-500.0,0.00039726,6]
[327589098,1716245514403,-500.0,0.00039726,6]
[327589099,1716245514413,-1796.9,0.00039726,6]
[327589100,1716245514423,-505.81,0.00039726,6]
[327589101,1716245514432,-500.0,0.00039726,6]
[327589102,1716245514442,-500.0,0.00039726,6]
[327589103,1716245514451,-500.0,0.00039726,6]
[327589104,1716245514460,-500.0,0.00039726,6]
[327589105,1716245514470,-622.79,0.00039726,6]
[327589106,1716245514479,-416.38315883,0.00039726,6]
[327589107,1716245514490,-3209.36,0.00039726,6]
[327589108,1716245514500,-500.0,0.00039726,6]
[327589109,1716245514510,-548.48,0.00039726,6]
[327589110,1716245514519,-500.0,0.00039726,6]
[327589111,1716245514529,-500.0,0.00039726,6]
[327589112,1716245514540,-500.0,0.00039726,6]
[327589113,1716245514550,-2753.14,0.00039726,6]
[327589114,1716245514560,-16281.11,0.00039726,6]
[327589115,1716245514570,-500.0,0.00039726,6]
[327589116,1716245514579,-500.0,0.00039726,6]
[327589117,1716245514588,-577.78,0.00039726,6]
[327589118,1716245514598,-2053.11,0.00039726,6]
[327589119,1716245514608,-918.45,0.00039726,6]
[327589120,1716245514618,-1321.39,0.00039726,6]
[327589121,1716245514627,-1326.66,0.00039726,6]
[327589122,1716245514636,-567.32,0.00039726,6]
[327589123,1716245514645,-751.58,0.00039726,6]
[327589124,1716245514655,-574.24985133,0.00039726,6]
[327589125,1716245514664,-513.36,0.00039726,6]
[327589126,1716245514674,-1026.69,0.00039726,6]
[327589127,1716245514684,-2532.84,0.00039726,6]
[327589128,1716245514693,-500.0,0.00039726,6]
[327589129,1716245514703,-2101.19,0.00039726,6]
[327589130,1716245514712,-592.89,0.00039726,6]
[327589131,1716245514722,-1055.63,0.00039726,6]
[327589132,1716245514731,-570.68,0.00039726,6]
[327589133,1716245514740,-620.38,0.00039726,6]
[327589134,1716245514750,-3413.59,0.00039726,6]
[327589135,1716245514760,-642.19447186,0.00039726,6]
[327589136,1716245514769,-500.0,0.00039726,6]
[327589137,1716245514779,-740.56,0.00039726,6]
[327589138,1716245514789,-504.06,0.00039726,6]
[327589139,1716245514799,-1942.18,0.00039726,6]
[327589140,1716245514809,-1251.93,0.00039726,6]
[327589141,1716245514818,-30429.05,0.00039726,6]
[327589142,1716245514827,-500.0,0.00039726,2]
[327589143,1716245514837,-500.0,0.00039726,6]
[327589144,1716245514847,-630.83,0.00039726,6]
[327589145,1716245514857,-1844.18,0.00039726,6]
[327589146,1716245514867,-815.91,0.00039726,6]
[327589147,1716245514876,-748.28,0.00039726,6]
[327589148,1716245514891,-500.0,0.00039726,6]
[327589149,1716245514904,-500.0,0.00039726,6]
[327589150,1716245514914,-500.0,0.00039726,6]
[327589151,1716245514926,-3611.41962911,0.00039726,6]
[327589152,1716245515795,-160.74037089,0.00039726,6]
[327589153,1716245515806,-500.0,0.00039726,6]
[327589154,1716245515816,-500.0,0.00039726,6]
[327589155,1716245515826,-901.56,0.00039726,6]
[327589156,1716245515836,-2815.44,0.00039726,6]
[327589157,1716245515846,-500.0,0.00039726,6]
[327589158,1716245515856,-804.6,0.00039726,6]
[327589159,1716245515866,-13987.25,0.00039726,6]
[327589160,1716245515876,-1053.44,0.00039726,6]
[327589161,1716245515888,-699.25,0.00039726,6]
[327589162,1716245515903,-751.67,0.00039726,6]
[327589163,1716245515913,-500.0,0.00039726,6]
[327589164,1716245515924,-500.0,0.00039726,6]
[327589165,1716245515935,-1918.99,0.00039726,6]
[327589166,1716245515946,-997.22,0.00039726,6]
[327589167,1716245515957,-4140.85,0.00039726,6]
[327589168,1716245515969,-506.94605146,0.00039726,6]
[327589169,1716245515980,-500.0,0.00039726,6]
[327589170,1716245515990,-3236.59,0.00039726,6]
[327589171,1716245516001,-2582.59,0.00039726,6]
[327589172,1716245516012,-516.10640678,0.00039726,6]
[327589173,1716245516023,-613.44,0.00039726,6]
[327589174,1716245516034,-1651.31062383,0.00039726,6]
[327589175,1716245516047,-881.69825877,0.00039726,6]
[327589176,1716245516060,-344.5911174,0.00039726,6]
[327589177,1716245516071,-595.4,0.00039726,6]
[327589178,1716245516082,-500.0,0.00039726,6]
[327589179,1716245516092,-1530.58,0.00039726,6]
[327589180,1716245516102,-712.88108245,0.00039726,6]
[327589181,1716245516260,-1123.87,0.00038356,6]
[327589182,1716245516271,-206.771122,0.00038356,7]
[327589183,1716245516280,-130.17862944,0.00038356,6]
[327589184,1716245516294,-680.55137056,0.00038356,6]
[327589185,1716245516304,-784.74,0.00038356,6]
[327589186,1716245516314,-500.0,0.00038356,6]
[327589187,1716245516325,-1495.58,0.0003863,6]
[327589188,1716245516335,-2116.52023983,0.0003863,6]
[327589189,1716245516347,-1925.92954818,0.0003863,6]
[327589190,1716245516957,-206.771122,0.00038356,7]
[327589191,1716245516966,-206.771122,0.00038356,7]
[327589192,1716245516980,-206.771122,0.00038356,7]
[327589193,1716245516990,-206.771122,0.00038356,7]
[327589194,1716245516999,-500.0,0.00038356,6]
[327589195,1716245517009,-500.31542538,0.00038356,6]
[327589196,1716245517021,-114.24021199,0.0003863,6]
[327589197,1716245517032,-1168.21987463,0.0003863,6]
[327589198,1716245517045,-1356.12200597,0.0003863,6]
[327589199,1716245517056,-274.5681194,0.0003863,6]
[327589200,1716245517067,-764.30375812,0.0003863,6]
[327589201,1716245517079,-287.1637346,0.0003863,6]
[327589202,1716245517092,-72.40250728,0.0003863,6]
[327589203,1716245517102,-810.73,0.0003863,6]
[327589204,1716245517112,-784.74,0.0003863,6]
[327589205,1716245517121,-500.0,0.0003863,6]
[327589206,1716245517131,-206.771122,0.0003863,14]
[327589207,1716245517141,-206.771122,0.0003863,14]
[327589208,1716245517151,-500.0,0.00038904,6]
[327589209,1716245517161,-1674.87,0.00038904,6]
[327589210,1716245517171,-1495.58,0.00038904,6]
[327589211,1716245517181,-4156.69,0.00038904,6]
[327589212,1716245517191,-2798.91,0.00038904,6]
[327589213,1716245517201,-1123.87,0.00038904,6]
[327589214,1716245517211,-810.73,0.00038904,6]
[327589215,1716245517220,-500.0,0.00038904,6]
[327589216,1716245517230,-784.74,0.00038904,6]
[327589217,1716245517240,-500.0,0.00039178,6]
[327589218,1716245517250,-500.0,0.00039178,6]
[327589219,1716245517259,-500.0,0.00039178,6]
[327589220,1716245517269,-1674.87,0.00039178,6]
[327589221,1716245517279,-1495.58,0.00039178,6]
[327589222,1716245517291,-4156.69,0.00039178,6]
[327589223,1716245517301,-2798.91,0.00039178,6]
[327589224,1716245517310,-500.0,0.00039178,6]
[327589225,1716245517320,-1123.87,0.00039178,6]
[327589226,1716245517330,-810.73,0.00039178,6]
[327589227,1716245517341,-784.74,0.00039178,6]
[327589228,1716245517351,-1280.0,0.000392,2]
[327589229,1716245517361,-521.89733133,0.00039452,6]
[327589230,1716245517370,-500.0,0.00039452,6]
[327589231,1716245517380,-500.0,0.00039452,6]
[327589232,1716245517389,-1674.87,0.00039452,6]
[327589233,1716245517399,-1495.58,0.00039452,6]
[327589234,1716245517408,-2798.91,0.00039452,6]
[327589235,1716245517418,-4156.69,0.00039452,6]
[327589236,1716245517427,-500.0,0.00039452,6]
[327589237,1716245517436,-1123.87,0.00039452,6]
[327589238,1716245517446,-810.73,0.00039452,6]
[327589239,1716245517455,-784.74,0.00039452,6]
[327589240,1716245517465,-2665.25891755,0.00039726,6]
[327589241,1716245517475,-500.0,0.00039726,6]
[327589242,1716245517484,-500.0,0.00039726,6]
[327589243,1716245517494,-938.82,0.00039726,6]
[327589244,1716245517505,-500.0,0.00039726,6]
[327589245,1716245517515,-500.0,0.00039726,6]
[327589246,1716245517524,-500.0,0.00039726,6]
[327589247,1716245517536,-500.0,0.00039726,6]
[327589248,1716245517546,-1615.98,0.00039726,6]
[327589249,1716245517556,-500.0,0.00039726,6]
[327589250,1716245517566,-8193.08,0.00039726,6]
[327589251,1716245517576,-893.96,0.00039726,6]
[327589252,1716245517586,-19028.04,0.00039726,6]
[327589253,1716245517596,-500.67,0.00039726,6]
[327589254,1716245517606,-575.4,0.00039726,6]
[327589255,1716245517616,-500.0,0.00039726,6]
[327589256,1716245517625,-500.0,0.00039726,6]
[327589257,1716245517635,-2645.07,0.00039726,6]
[327589258,1716245517645,-500.0,0.00039726,6]
[327589259,1716245517654,-1370.00805709,0.00039726,6]
[327589260,1716245519295,-198.97228417,0.00035995,2]
[327589261,1716245519306,-193.97771483,0.00038356,5]
[327589262,1716245519319,-4.02228517,0.00038356,5]
[327589263,1716245519329,-500.0,0.0003863,6]
[327589264,1716245519340,-206.771122,0.0003863,14]
[327589265,1716245519351,-206.771122,0.0003863,14]
[327589266,1716245519361,-500.0,0.00038904,6]
[327589267,1716245519372,-500.0,0.00039178,6]
[327589268,1716245519382,-56.73547108,0.00039726,6]
[327589269,1716245519394,-1558.87647183,0.00039726,6]
[327589270,1716245519404,-4231.50201585,0.00039726,6]
[327589271,1716245519416,-1234.0,0.00039726,6]
[327589272,1716245520210,-357.50566786,0.00037589,5]
[327589273,1716245520220,-759.95433182,0.00038346,10]
[327589274,1716245520231,-365.31566818,0.00038346,10]
[327589275,1716245520242,-285.0393004,0.00038355,4]
[327589276,1716245520251,-205.90113136,0.00038355,4]
[327589277,1716245520261,-30.97622678,0.00038356,6]
[327589278,1716245520273,-350.28135519,0.00038356,6]
[327589279,1716245520528,-115.30546196,0.00038356,6]
[327589280,1716245520543,-3.43695607,0.00038356,6]
[327589281,1716245520553,-1205.19484622,0.0003853,2]
[327589282,1716245520562,-291.36819771,0.0003853,2]
[327589283,1716245520574,-52.56710176,0.0003853,2]
[327589284,1716245520583,-206.771128,0.0003863,14]
[327589285,1716245520592,-500.0,0.00039452,6]
[327589286,1716245520602,-776.57711419,0.00039726,6]
[327589287,1716245525109,440.63,0.00027,90]
[327589288,1716245538165,394.16,0.00027,90]
[327589290,1716245807745,1000.0,0.00017259,2]
[327589291,1716245832654,1000.0,0.00017259,2]
[327589292,1716245851355,156.57,0.00013973,2]
[327589294,1716246030476,1227.01099952,0.00017259,2]
[327589309,1716246548174,-1227.01099952,0.00018499,2]
[327589310,1716246548194,-500.0,0.000185,2]
[327589311,1716246548213,-3615.63465981,0.00019725,2]
[327589312,1716246564109,-16000.01907944,0.00019725,2]
[327589319,1716246607971,746.52630582,0.00017259,2]
[327589320,1716246607997,2253.47369418,0.00017259,2]
[327589321,1716246632928,-298.78407833,0.00019725,2]
[327589324,1716246632938,-155.10854058,0.00021125,2]
[327589327,1716246632948,-159.11003129,0.00021983,2]
[327589328,1716246632958,-2004.25641899,0.000234,2]
[327589329,1716246632967,-5000.0,0.00024037,2]
[327589331,1716246632977,-154.92371795,0.00024543,2]
[327589332,1716246632993,-926.52234979,0.00025,2]
[327589333,1716246633003,-166.66666666,0.00025077,2]
[327589334,1716246633014,-159.11003129,0.00025442,2]
[327589335,1716246633026,-155.10854058,0.00025483,2]
[327589336,1716246633037,-154.92371795,0.00025624,2]
[327589337,1716246633049,-153.73,0.00026321,2]
[327589338,1716246633060,-159.11003129,0.00026836,2]
[327589339,1716246633070,-1198.64768723,0.00027,2]
[327589340,1716246633080,-1186.2092065,0.00027,2]
[327589341,1716246633089,-153.08402109,0.00027123,2]
[327589342,1716246633101,-149.34453969,0.00027395,2]
[327589343,1716246633114,-9.7654916,0.00027395,2]
[327589344,1716246633125,-5119.0,0.000274,3]
[327589345,1716246633135,-155.10854058,0.00027487,2]
[327589346,1716246633145,-250.0,0.00027635,2]
[327589347,1716246633155,-3395.55,0.00027826,2]
[327589348,1716246633166,-500.0,0.00027846,2]
[327589349,1716246633176,-152.21,0.00027977,2]
[327589350,1716246633187,-153.08402109,0.00028108,2]
[327589351,1716246633196,-2000.0,0.00028126,2]
[327589352,1716246633207,-17341.84,0.00028246,2]
[327589353,1716246633217,-428.07,0.00028255,2]
[327589354,1716246633226,-200.0,0.00028286,2]
[327589355,1716246633238,-159.11003129,0.00028319,2]
[327589356,1716246633247,-250.0,0.00028332,2]
[327589357,1716246633260,-250.0,0.00028333,2]
[327589358,1716246633271,-150.0,0.00028378,2]
[327589359,1716246633280,-163.0,0.00028443,2]
[327589360,1716246633290,-153.08402109,0.00028484,2]
[327589361,1716246633302,-286.56,0.00028603,2]
[327589362,1716246633312,-163.0,0.0002869,2]
[327589363,1716246633322,-186.58348372,0.00028827,2]
[327589364,1716246633332,-151.77277909,0.0002885,2]
[327589365,1716246633344,-7.3372522,0.0002885,2]
[327589366,1716246633354,-5000.0,0.00028898,7]
[327589367,1716246633363,-2067.41781312,0.00028904,2]
[327589368,1716246633373,-156.98445191,0.00028904,2]
[327589369,1716246633382,-163.0,0.00028937,2]
[327589370,1716246633391,-1481.71970581,0.00029031,2]
[327589371,1716246633401,-266.06,0.00029032,120]
[327589372,1716246633411,-5000.0,0.00029176,2]
[327589373,1716246633420,-1151.77407501,0.00029177,2]
[327589374,1716246633429,-163.0,0.00029184,2]
[327589375,1716246633439,-163.0,0.00029431,2]
[327589376,1716246633449,-163.0,0.00029678,2]
[327589377,1716246633458,-827.3928,0.00029699,2]
[327589378,1716246633468,-937.72,0.00029789,10]
[327589379,1716246633479,-781.44,0.00029789,10]
[327589380,1716246633490,-1564.42048068,0.00029797,2]
[327589381,1716246633500,-503.85224682,0.00029797,2]
[327589382,1716246633510,-633.52391333,0.00029798,2]
[327589383,1716246633519,-6775.35452768,0.00029798,2]
[327589385,1716246633528,-20145.14456211,0.00029799,2]
[327589387,1716246633540,-27819.61603789,0.00029799,2]
[327589389,1716246633549,-165.81023685,0.0002991,2]
[327589390,1716246633559,-163.0,0.00029925,2]
[327589393,1716246633570,-684.03068819,0.0003,4]
[327589395,1716246633581,-7171.84907073,0.0003,4]
[327589397,1716246633590,-2342.31740382,0.0003,4]
[327589398,1716246633600,-2540.3665364,0.0003,2]
[327589399,1716246633613,-574.32971375,0.0003,2]
[327589400,1716246633629,-409.12146104,0.0003,2]
[327589401,1716246633725,-1649.13543553,0.0003,2]
[327589402,1716246633737,-514.29235671,0.0003,2]
[327589403,1716246633746,-97.41824326,0.0003001,7]
[327589404,1716246638913,-61.69178803,0.0003001,7]
[327589407,1716246638923,-463.72531286,0.00030565,2]
[327589413,1716246638953,-393.03242304,0.00030565,2]
[327589414,1716246638964,-479.77795545,0.00030565,2]
[327589415,1716246638976,-1162.988,0.00030565,2]
[327589416,1716246638990,-675.13887568,0.00030565,2]
[327589418,1716246639880,-220.88743297,0.00030565,2]
[327589420,1716246639890,-180.0,0.00031054,2]
[327589421,1716246639900,-155.10854058,0.00031064,7]
[327589423,1716246639910,-173.08,0.00031068,2]
[327589425,1716246639920,-153.73,0.000311,2]
[327589427,1716246639930,-57.53357645,0.0003116,2]
[327589429,1716246639941,-1637.09935816,0.0003116,2]
[327589432,1716246639954,-4422.33067648,0.0003116,2]
[327589434,1716246639965,-2007.13147997,0.0003116,2]
[327589436,1716246639975,-138.63739827,0.00031183,2]
[327589438,1716246639986,-274.37260173,0.00031183,2]
[327589439,1716246639998,-413.01,0.00031192,2]
[327589440,1716246640007,-413.01,0.000312,2]
[327589441,1716246640016,-413.01,0.00031208,2]
[327589442,1716246640025,-413.01,0.00031216,2]
[327589443,1716246640034,-413.01,0.00031225,2]
[327589444,1716246640044,-413.01,0.00031233,2]
[327589445,1716246640053,-413.01,0.00031241,2]
[327589446,1716246640062,-413.01,0.00031249,2]
[327589447,1716246640072,-413.01,0.00031257,2]
[327589448,1716246640081,-1262.0,0.0003126,2]
[327589449,1716246640091,-1452.93739827,0.0003126,2]
[327589450,1716246640103,-189.06260173,0.0003126,2]
[327589451,1716246640112,-1225.0,0.0003126,2]
[327589452,1716246640122,-544.0,0.0003126,2]
[327589453,1716246640131,-164.0,0.0003126,2]
[327589454,1716246640140,-444.0,0.0003126,2]
[327589455,1716246640149,-439.0,0.0003126,2]
[327589456,1716246640159,-613.0,0.0003126,2]
[327589457,1716246640169,-809.0,0.0003126,2]
[327589458,1716246640178,-1279.29248589,0.0003126,2]
[327589459,1716246640295,-368.70751411,0.0003126,2]
[327589460,1716246640306,-150.0,0.0003126,2]
[327589461,1716246640315,-228.18276451,0.0003126,2]
[327589462,1716246640326,-995.35821452,0.0003126,2]
[327589463,1716246640338,-579.55402097,0.0003126,2]
[327589464,1716246640349,-150.0,0.0003126,2]
[327589465,1716246640358,-690.72487979,0.0003126,2]
[327589466,1716246640370,-447.27512021,0.0003126,2]
[327589467,1716246640379,-4.5061358,0.0003126,2]
[327589468,1716246640391,-3155.4938642,0.0003126,2]
[327589469,1716246640400,-215.0,0.0003126,2]
[327589470,1716246640410,-413.01,0.00031266,2]
[327589471,1716246640419,-413.01,0.00031274,2]
[327589472,1716246640429,-413.01,0.00031282,2]
[327589473,1716246640439,-413.01,0.0003129,2]
[327589474,1716246640448,-413.01,0.00031299,2]
[327589475,1716246640458,-413.01,0.00031307,2]
[327589476,1716246640467,-413.01,0.00031315,2]
[327589477,1716246640477,-413.01,0.00031323,2]
[327589478,1716246640486,-413.01,0.00031331,2]
[327589479,1716246640498,-413.01,0.0003134,2]
[327589480,1716246640507,-159.11003129,0.00031341,7]
[327589481,1716246640516,-197.66,0.00031401,2]
[327589482,1716246640526,-562.14397233,0.00031507,2]
[327589483,1716246640539,-3337.5717888,0.00031507,2]
[327589484,1716246640551,-1231.28423887,0.00031507,2]
[327589485,1716246640561,-3324.79746511,0.00031507,2]
[327589486,1716246640572,-2431.20253489,0.00031507,2]
[327589487,1716246640582,-884.849,0.00031507,2]
[327589488,1716246640592,-286.456,0.00031507,2]
[327589489,1716246640602,-12715.74018197,0.00031507,2]
[327589568,1716246642379,-25160.25981803,0.00031507,2]
[327589569,1716246642388,-2160.0,0.00031684,2]
[327589570,1716246642398,-2160.0,0.00031684,2]
[327589571,1716246642407,-974.0,0.00031684,2]
[327589572,1716246642416,-165.8102368,0.00031689,2]
[327589573,1716246642425,-153.08402109,0.00031699,7]
[327589574,1716246642435,-8124.09509098,0.00032131,2]
[327589575,1716246642444,-266.06,0.00032661,120]
[327589576,1716246642453,-159.11003129,0.00032667,7]
[327589577,1716246642462,-8124.09509098,0.00033102,2]
[327589578,1716246642471,-155.10854058,0.00033203,7]
[327589579,1716246642481,-173.08,0.00033266,2]
[327589580,1716246642490,-3395.55,0.00033305,2]
[327589581,1716246642500,-165.8102368,0.00033468,2]
[327589582,1716246642752,-339.8,0.000335,2]
[327589583,1716246642773,-339.8,0.000335,2]
[327589584,1716246642783,-339.8,0.000335,2]
[327589585,1716246642793,-339.8,0.000335,2]
[327589586,1716246642802,-339.8,0.000335,2]
[327589587,1716246642813,-339.8,0.000335,2]
[327589588,1716246642823,-339.8,0.000335,2]
[327589589,1716246642832,-339.8,0.000335,2]
[327589590,1716246642843,-339.8,0.000335,2]
[327589591,1716246642853,-339.8,0.000335,2]
[327589592,1716246642863,-339.8,0.000335,2]
[327589593,1716246642873,-339.8,0.000335,2]
[327589594,1716246642883,-339.8,0.000335,2]
[327589595,1716246642893,-339.8,0.000335,2]
[327589596,1716246642903,-339.8,0.000335,2]
[327589597,1716246642913,-339.8,0.000335,2]
[327589598,1716246642922,-339.8,0.000335,2]
[327589599,1716246642933,-339.8,0.000335,2]
[327589600,1716246642943,-339.8,0.000335,2]
[327589601,1716246642952,-339.8,0.000335,2]
[327589602,1716246642962,-8074.8189,0.00033589,2]
[327589603,1716246642971,-467.4658,0.00033589,2]
[327589604,1716246642981,-1000.0,0.00033646,2]
[327589605,1716246642990,-410.0,0.000337,2]
[327589606,1716246642999,-150.0,0.0003393,2]
[327589607,1716246643009,-8124.09509098,0.00034073,2]
[327589608,1716246643019,-150.0,0.0003414,2]
[327589609,1716246643030,-253.0,0.0003426,5]
[327589610,1716246643040,-1262.0,0.0003426,2]
[327589611,1716246643050,-1642.0,0.0003426,2]
[327589612,1716246643060,-1225.0,0.0003426,2]
[327589613,1716246643070,-544.0,0.0003426,2]
[327589614,1716246643080,-164.0,0.0003426,2]
[327589615,1716246643089,-444.0,0.0003426,2]
[327589616,1716246643099,-439.0,0.0003426,2]
[327589617,1716246643108,-611.0,0.0003426,2]
[327589618,1716246643120,-809.0,0.0003426,2]
[327589619,1716246643130,-1646.0,0.0003426,2]
[327589620,1716246643141,-150.0,0.0003426,2]
[327589621,1716246643151,-150.0,0.0003426,2]
[327589622,1716246643161,-1136.0,0.0003426,2]
[327589623,1716246643172,-3158.0,0.0003426,2]
[327589624,1716246643181,-215.0,0.0003426,2]
[327589625,1716246643191,-150.0,0.00034278,2]
[327589626,1716246643201,-372.24,0.00034497,2]
[327589627,1716246643211,-1511.297,0.00034507,2]
[327589628,1716246643220,-5752.0,0.00034507,2]
[327589629,1716246643229,-25136.418,0.00034507,2]
[327589630,1716246643239,-159.11003129,0.00034546,7]
[327589631,1716246643250,-159.11003131,0.0003467,7]
[327589632,1716246643260,-1295.333,0.00034684,2]
[327589633,1716246643272,-1295.333,0.00034684,2]
[327589634,1716246643283,-972.0,0.00034684,2]
[327589635,1716246643293,-167.0,0.00034984,2]
[327589636,1716246643303,-1607.51526347,0.00035,4]
[327589637,1716246643313,-793.53553652,0.00035012,4]
[327589638,1716246643323,-8124.09509098,0.00035044,2]
[327589639,1716246643332,-150.0,0.000352,8]
[327589640,1716246643342,-165.8102368,0.00035246,2]
[327589641,1716246643353,-150.0,0.00035269,2]
[327589642,1716246643363,-150.0,0.00035352,2]
[327589643,1716246643373,-173.08,0.00035463,2]
[327589644,1716246643383,-150.0,0.00035534,2]
[327589645,1716246643393,-150.0,0.00035585,2]
[327589646,1716246643403,-150.0,0.00035616,2]
[327589647,1716246643414,-150.0,0.000357,8]
[327589648,1716246643423,-153.73,0.00035879,2]